bitfinex/quotes_ETHUSD_20220202
["timestamp","ask_amount","ask_price","bid_price","bid_amount"]
[1643838504855,0.1894,2639.9,2638.2,0.448]
[1643838505047,0.1894,2639.9,2638.4,0.01289485]
[1643838505246,0.27639994,2640.1,2639.6,0.70989616]
[1643838505448,0.1894,2640.3,2639.6,0.70989616]
[1643838505649,17.72215909,2640.4,2639.7,0.18939]
[1643838505848,16.97927832,2640.4,2639.7,0.48939]
[1643838506099,0.1432,2642.0,2639.8,0.1131944]
[1643838506100,0.1892,2641.9,2639.8,0.1131944]
[1643838506303,0.1892,2641.9,2639.9,0.448]
[1643838506500,0.18939,2642.7,2639.9,0.448]
[1643838506501,0.1892,2642.3,2640.4,1.0]
[1643838506706,0.01284962,2642.6,2641.2,1.0]
[1643838506707,0.1892,2642.6,2641.2,1.0]
[1643838506903,0.9464,2643.6,2641.0,0.01291696]
[1643838506904,0.1892,2642.8,2641.3,0.63739]
[1643838507101,0.01222953,2643.4,2641.4,0.448]
[1643838507302,1.6041879,2643.3,2641.5,0.18939]
[1643838507500,0.02131351,2641.9,2641.6,0.6372]
[1643838507707,0.02131351,2641.9,2641.1,0.37859]
[1643838507999,0.02131351,2641.9,2641.1,0.1892]
[1643838508199,0.02131351,2641.9,2640.7,1.18939]
[1643838508398,0.02131351,2641.9,2640.2,1.1995]
[1643838508399,0.1892,2641.8,2640.3,1.37859]
[1643838508599,0.73029623,2641.5,2640.3,0.37859]
[1643838508799,0.17332225,2641.2,2640.3,0.18939]
[1643838508999,0.17332225,2641.2,2639.7,0.46077712]
[1643838509000,0.18939,2641.1,2639.8,0.1892]
[1643838509201,0.18939,2641.1,2639.2,2.49415148]
[1643838509202,0.99999999,2639.9,2638.9,0.1893]
[1643838509401,0.99999999,2639.9,2636.5,1.52407356]
[1643838509402,0.01270194,2639.0,2637.6,0.1894]
[1643838509606,0.7910774,2638.6,2637.7,2.84532]
[1643838509855,0.7910774,2638.6,2637.9,2.02277]
[1643838510052,4.46081162,2639.6,2637.9,2.02277]
[1643838510053,0.1895,2639.4,2637.9,0.89583]
[1643838510249,4.46081162,2639.6,2637.6,0.1895]
[1643838510250,2.75457162,2639.5,2637.6,0.1895]
[1643838510451,0.1895,2639.3,2637.6,0.1895]
[1643838510649,0.1894,2639.4,2637.4,1.1894]
[1643838510854,0.1895,2639.2,2638.0,0.01239814]
[1643838511049,2.56507162,2640.2,2638.3,0.83787727]
[1643838511050,0.81255515,2639.4,2638.3,0.83787727]
[1643838511250,0.17212845,2638.8,2638.6,0.01269133]
[1643838512254,0.17212845,2638.8,2638.0,0.448]
[1643838512449,1.04564742,2638.8,2638.0,0.748]
[1643838512648,1.04564742,2638.8,2637.9,0.01270205]
[1643838512849,1.04564742,2638.8,2638.0,0.1895]
[1643838513051,2.99480227,2638.7,2637.6,0.1895]
[1643838513249,2.99480227,2638.7,2637.2,0.01255302]
[1643838513250,3.18430227,2638.7,2637.2,0.01255302]
[1643838513498,1.00777591,2638.3,2636.2,0.1895]
[1643838513701,3.32885412,2638.2,2636.2,0.1895]
[1643838513898,3.32885412,2638.2,2637.8,0.02091107]
[1643838513899,3.15563192,2638.2,2637.8,0.02091107]
[1643838514195,0.6536678,2638.2,2637.8,0.02091107]
[1643838514395,0.16789221,2638.1,2637.8,0.02091107]
[1643838514594,0.1895,2638.0,2637.8,0.02091107]
[1643838514799,3.29714703,2637.9,2637.8,0.02091107]
[1643838514994,0.94714703,2637.9,2637.5,0.02086156]
[1643838515495,2.2,2637.8,2636.6,0.01242216]
[1643838515695,2.2,2637.8,2636.7,0.1895]
[1643838516299,5.15445951,2637.8,2636.7,0.1895]
[1643838516496,0.16456394,2637.7,2636.7,0.1895]
[1643838516697,0.16456394,2637.7,2636.6,0.01242216]
[1643838517096,0.00337267,2637.6,2636.7,0.1895]
[1643838517556,0.00337267,2637.6,2636.9,0.71865579]
[1643838517557,0.21366905,2637.2,2636.9,0.71865579]
[1643838517758,0.21366905,2637.2,2636.8,0.448]
[1643838517759,0.21366905,2637.2,2637.0,0.1895]
[1643838517955,0.21366905,2637.2,2636.9,0.1895]
[1643838518359,0.21366905,2637.2,2637.0,0.00493229]
[1643838518360,0.40305905,2637.2,2637.0,0.00493229]
[1643838518558,4.49999999,2637.1,2636.6,0.01973211]
[1643838518758,0.7373135,2637.0,2636.6,0.01973211]
[1643838518962,0.1895,2636.9,2636.6,0.01973211]
[1643838519157,5.83939,2636.7,2636.6,3.211e-05]
[1643838519356,5.83939,2636.7,2635.9,0.04092649]
[1643838519357,5.8395,2636.7,2635.9,0.04092649]
[1643838519555,0.1895,2636.6,2635.9,0.04092649]
[1643838519758,0.34971348,2636.6,2634.8,0.04717915]
[1643838519962,2.8516776,2636.6,2634.9,0.1897]
[1643838520160,0.99999999,2636.1,2634.8,0.04717915]
[1643838520359,0.99999999,2636.1,2635.0,0.0460423]
[1643838520360,0.6377,2636.0,2635.0,0.0460423]
[1643838520558,0.6377,2636.0,2634.6,0.0612395]
[1643838520559,0.19395129,2636.0,2634.6,0.0612395]
[1643838520759,0.19395129,2636.0,2634.6,0.0129235]
[1643838520760,0.20774137,2634.8,2634.6,0.0129235]
[1643838520989,0.1897,2636.0,2634.7,0.04774758]
[1643838521188,0.18939,2636.3,2634.7,0.04774758]
[1643838521390,0.75997714,2635.3,2634.7,0.04774758]
[1643838522390,0.91204757,2634.9,2634.7,0.04774758]
[1643838522992,0.18551372,2635.2,2634.7,0.04774758]
[1643838523191,0.18551372,2635.2,2634.7,0.04929387]
[1643838523392,0.18551372,2635.2,2634.7,0.00154629]
[1643838523692,0.18551372,2635.2,2634.8,0.04717915]
[1643838523893,0.37490372,2635.2,2634.8,0.04717915]
[1643838524292,0.1897,2635.1,2634.1,0.74104161]
[1643838524494,0.18551372,2635.2,2634.9,0.00513883]
[1643838524951,5.65,2635.1,2633.5,0.1897]
[1643838525151,2.50196412,2635.0,2633.6,0.00096]
[1643838525349,0.82709,2634.9,2633.6,0.00096]
[1643838525651,0.1897,2634.9,2633.6,0.00096]
[1643838525947,0.18942941,2634.3,2633.3,1.58769]
[1643838526146,0.18942941,2634.3,2633.7,0.01220975]
[1643838526448,0.1897,2635.3,2633.7,0.01220975]
[1643838526646,2.69166412,2635.6,2633.7,0.01220975]
[1643838526850,5.65,2635.4,2633.3,0.1897]
[1643838527048,1.5,2634.7,2633.3,0.1897]
[1643838527247,0.1897,2634.6,2633.3,0.1897]
[1643838527447,0.18403009,2633.8,2633.3,0.1897]
[1643838528046,0.18403009,2633.8,2633.2,5.6868]
[1643838528246,0.18403009,2633.8,2633.4,0.00153067]
[1643838529092,0.18403009,2633.8,2633.2,5.6868]
[1643838529294,0.18403009,2633.8,2632.4,1.49126208]
[1643838529295,0.0122894,2633.3,2631.7,1.89899]
[1643838529500,0.0122894,2633.3,2630.5,1.77596]
[1643838529501,0.01245988,2632.6,2631.8,0.1898]
[1643838529694,1.1326,2633.2,2631.6,0.1899]
[1643838529892,1.1326,2633.2,2631.2,0.01211746]
[1643838529893,0.69996703,2631.8,2631.2,0.01211746]
[1643838530095,0.69996703,2631.8,2631.3,0.1899]
[1643838530296,0.20754006,2631.1,2630.8,0.19]
[1643838530498,0.18939,2632.3,2630.5,0.01204722]
[1643838530699,0.01898239,2632.5,2631.0,1.0]
[1643838530700,0.20898239,2632.5,2631.0,1.0]
[1643838530996,0.19,2633.1,2631.7,0.01216871]
[1643838531194,0.1899,2633.3,2631.7,0.01216871]
[1643838531395,0.1899,2633.5,2631.7,0.01216871]
[1643838531599,0.20719972,2632.2,2631.7,0.01216871]
[1643838531794,0.20719972,2632.2,2631.3,0.448]
[1643838531996,0.20719972,2632.2,2631.1,0.1899]
[1643838532242,0.20719972,2632.2,2630.6,0.1899]
[1643838532243,0.0125975,2632.0,2630.6,0.1899]
[1643838532445,0.01236658,2631.2,2630.0,0.1131944]
[1643838532637,0.01236658,2631.2,2628.4,1.77596]
[1643838532638,0.19,2631.1,2629.2,0.20345329]
[1643838532840,0.19,2631.1,2628.4,1.72845329]
[1643838532841,0.81882302,2630.1,2628.4,1.72845329]
[1643838533050,0.81882302,2630.1,2629.0,0.01256157]
[1643838533839,0.19090999,2630.2,2629.3,0.17494512]
[1643838534040,0.19090999,2630.2,2629.0,0.12575597]
[1643838534241,0.19090999,2630.2,2629.4,0.0049707]
[1643838534641,0.19,2630.1,2629.4,7.07e-05]
[1643838534849,0.01203199,2629.6,2629.4,7.07e-05]
[1643838535039,6.78411076,2629.5,2629.0,0.01988577]
[1643838535239,6.78411076,2629.5,2628.5,0.00096]
[1643838535240,7.64901076,2629.5,2627.5,0.01270263]
[1643838535441,10.34439314,2629.5,2627.5,0.01270263]
[1643838535647,10.34439314,2629.5,2627.6,0.04092649]
[1643838535648,0.02567521,2628.9,2627.6,0.04092649]
[1643838535844,0.1902,2628.8,2627.6,0.04092649]
[1643838536098,0.01327362,2628.9,2627.6,0.15794305]
[1643838536099,0.19706231,2628.5,2627.6,0.15794305]
[1643838536298,0.86644965,2628.9,2627.6,0.1702393]
[1643838536500,0.1902,2629.2,2627.9,0.94656638]
[1643838536702,0.1902,2629.3,2627.9,0.94656638]
[1643838536903,0.63739,2629.2,2627.7,0.04035807]
[1643838537100,0.448,2629.1,2627.9,0.01240675]
[1643838537300,0.1902,2629.4,2627.7,0.04035807]
[1643838537500,0.1902,2629.5,2627.7,0.04035807]
[1643838537699,0.13819997,2629.6,2627.7,0.04035807]
[1643838537700,0.32839997,2629.6,2628.1,0.01281198]
[1643838537900,0.13702023,2629.6,2628.8,0.18489642]
[1643838538702,0.13819997,2629.8,2628.8,0.18489642]
[1643838538902,0.13819997,2629.8,2628.6,2.53661115]
[1643838538903,0.20236198,2630.6,2629.5,0.17202661]
[1643838539102,1.1503,2631.5,2629.5,0.17202661]
[1643838539103,0.19,2630.8,2629.5,0.17202661]
[1643838539300,0.19,2631.0,2629.6,0.448]
[1643838539500,0.20260486,2631.4,2629.6,0.448]
[1643838539744,0.15589414,2631.4,2630.1,0.3]
[1643838539946,0.15589414,2631.4,2629.7,3.99949841]
[1643838540144,0.15589414,2631.4,2629.3,0.02]
[1643838540145,0.01268534,2630.1,2629.3,0.02]
[1643838540346,0.01268534,2630.1,2629.0,0.00096]
[1643838540347,0.01213136,2629.4,2629.0,0.00096]
[1643838540548,0.638,2629.3,2628.2,0.02117974]
[1643838540746,0.638,2629.3,2628.2,0.00117974]
[1643838540950,5.65,2629.2,2627.6,0.17559248]
[1643838541143,0.638,2629.3,2627.6,0.17559248]
[1643838541345,0.01213136,2629.4,2628.2,1.0]
[1643838541544,0.1902,2629.7,2628.2,1.1171]
[1643838541750,0.19,2629.9,2628.2,1.1171]
[1643838541944,0.7693602,2629.1,2628.2,1.33559944]
[1643838542144,0.20238698,2629.9,2628.2,1.33559944]
[1643838542544,0.20238698,2629.9,2628.9,0.00496572]
[1643838542750,0.14030675,2630.0,2628.9,0.96436572]
[1643838542946,0.00328653,2630.0,2628.9,1.28436572]
[1643838543145,0.01200721,2630.8,2629.4,3.1]
[1643838543345,0.19,2630.7,2629.4,3.1]
[1643838543609,0.19,2630.7,2629.3,0.2152519]
[1643838543610,2.5783224,2629.2,2628.9,0.00096]
[1643838543803,0.0126988,2629.5,2629.3,9.702e-05]
[1643838543804,5.84,2629.4,2629.3,9.702e-05]
[1643838544104,5.84,2629.4,2628.6,0.00598958]
[1643838544105,5.65,2629.3,2628.6,8.958e-05]
[1643838544307,0.00071042,2627.6,2626.4,0.21133]
[1643838544606,0.00071042,2627.6,2625.9,0.22496]
[1643838544607,0.90707778,2627.4,2625.9,0.22496]
[1643838544803,0.99999999,2627.2,2624.5,0.22744019]
[1643838545004,0.99999999,2627.2,2625.0,1.0]
[1643838545005,0.01228523,2626.3,2625.0,1.0]
[1643838545202,0.01228523,2626.3,2624.1,0.21496]
[1643838545203,0.1904,2627.1,2626.2,1.0]
[1643838545403,0.1904,2627.1,2626.5,0.01217435]
[1643838545404,0.00372599,2627.1,2626.5,0.01217435]
[1643838545603,0.00372599,2627.1,2625.3,0.01]
[1643838545604,0.00372599,2627.1,2626.0,0.21256698]
[1643838545804,0.13819997,2627.7,2626.1,0.448]
[1643838546004,0.13819997,2627.7,2626.4,0.01221667]
[1643838546207,0.13819997,2627.7,2626.5,0.448]
[1643838546604,0.67604087,2627.6,2627.1,0.15631235]
[1643838546804,0.13819997,2627.7,2626.5,0.327886]
[1643838547236,0.00264345,2627.5,2626.5,0.327886]
[1643838547440,0.00264345,2627.5,2627.0,0.00495067]
[1643838547836,0.76634013,2627.4,2627.0,0.00495067]
[1643838548037,0.00264345,2627.5,2627.0,0.00495067]
[1643838548543,0.00264345,2627.5,2627.1,0.00495039]
[1643838549138,0.8751701,2627.3,2627.1,0.00495039]
[1643838549338,0.00264345,2627.5,2627.1,0.00495039]
[1643838549538,0.00264345,2627.5,2625.8,0.46005948]
[1643838549539,0.00264345,2627.5,2625.8,1.46005948]
[1643838549743,0.00264345,2627.5,2627.1,0.00495048]
[1643838550341,2.81637039,2627.2,2627.1,0.00495048]
[1643838550540,2.82637039,2627.2,2627.1,0.00495048]
[1643838550740,2.06,2627.2,2626.4,0.84913717]
[1643838550991,0.20307762,2627.5,2627.0,0.00495058]
[1643838550992,0.00264345,2627.5,2627.0,0.00495058]
[1643838551395,0.00264345,2627.5,2627.1,0.448]
[1643838551593,0.00264345,2627.5,2627.4,0.01070312]
[1643838551791,3.69638273,2627.5,2627.4,0.01070312]
[1643838551990,2.80264345,2627.5,2627.4,0.01070312]
[1643838552194,2.99284345,2627.5,2627.4,0.01070312]
[1643838552391,0.00264345,2627.5,2627.4,0.01070312]
[1643838552595,0.1902,2627.5,2626.9,0.01980303]
[1643838552795,6.64999999,2628.0,2626.9,0.01980303]
[1643838552796,4.81286375,2627.0,2626.9,0.01980303]
[1643838553191,4.81286375,2627.0,2624.9,0.01]
[1643838553192,5.00306375,2627.0,2625.3,0.21496]
[1643838553392,5.00306375,2627.0,2625.8,0.17971167]
[1643838553593,0.85757962,2626.7,2625.8,0.17971167]
[1643838553798,0.85757962,2626.7,2625.3,0.21496]
[1643838553996,0.1904,2626.6,2625.3,0.21496]
[1643838554192,0.1904,2626.6,2625.0,0.007]
[1643838554193,0.1904,2626.6,2625.0,0.22196]
[1643838554594,0.19635466,2626.6,2625.0,0.22196]
[1643838554842,0.94045958,2626.0,2625.0,0.22196]
[1643838555039,0.00595466,2626.6,2625.0,0.22196]
[1643838555243,0.01244005,2626.9,2625.3,0.21496]
[1643838555244,0.1904,2626.5,2625.3,0.21496]
[1643838555438,0.01244005,2626.9,2625.3,0.21496]
[1643838555439,0.1904,2626.7,2625.3,0.21496]
[1643838555640,0.1902,2626.8,2625.0,0.007]
[1643838555842,0.19259717,2626.0,2625.8,0.00489103]
[1643838556040,0.1902,2626.8,2625.8,0.00489103]
[1643838556240,0.92446339,2626.3,2625.8,0.00489103]
[1643838556441,0.1902,2626.8,2625.8,0.00489103]
[1643838556647,0.1902,2626.9,2625.8,0.00489103]
[1643838556843,4.8,2627.0,2625.5,0.72825061]
[1643838557042,0.00261592,2626.5,2626.2,0.00147462]
[1643838557343,0.78935518,2626.5,2626.2,7.462e-05]
[1643838557548,5.66259127,2626.3,2626.2,7.462e-05]
[1643838557746,0.00261592,2626.5,2626.2,7.462e-05]
[1643838557941,0.00261592,2626.5,2625.0,0.01981366]
[1643838557942,0.00261592,2626.5,2625.3,0.448]
[1643838558593,0.00261592,2626.5,2625.5,0.89712604]
[1643838558796,0.00261592,2626.5,2625.6,0.448]
[1643838558997,0.00261592,2626.5,2625.8,1.0]
[1643838559198,0.00261592,2626.5,2625.9,0.458]
[1643838559393,0.00261592,2626.5,2626.0,0.19118151]
[1643838559592,0.00261592,2626.5,2626.2,0.73022929]
[1643838559794,0.00261592,2626.5,2626.3,0.448]
[1643838560995,0.01258673,2627.5,2626.4,2.95]
[1643838561195,3.20492935,2627.9,2626.5,0.448]
[1643838561508,3.20492935,2627.9,2626.1,0.00584697]
[1643838561509,0.01210923,2626.7,2626.1,0.00584697]
[1643838561700,0.01210923,2626.7,2625.7,0.00096]
[1643838561899,0.01245351,2627.4,2625.7,0.00096]
[1643838562096,0.1902,2627.3,2625.7,0.00096]
[1643838562345,0.00261317,2626.4,2626.2,0.00537081]
[1643838563748,0.1902,2626.3,2626.2,0.00537081]
[1643838564046,2.9,2626.2,2625.3,0.00096]
[1643838564446,0.16655192,2625.6,2625.0,0.00412]
[1643838564646,0.8696043,2625.9,2625.0,0.00412]
[1643838565246,0.1904,2626.1,2625.0,0.00412]
[1643838565448,0.01239067,2626.2,2625.0,0.00412]
[1643838565645,0.01239067,2626.2,2625.3,0.00490223]
[1643838565646,0.21801428,2625.9,2625.3,0.00490223]
[1643838566086,0.01239067,2626.2,2625.3,0.00490223]
[1643838566290,0.01239067,2626.2,2624.9,0.09315627]
[1643838566291,5.65,2626.1,2624.9,0.02505867]
[1643838566490,5.65,2626.1,2622.8,0.01240434]
[1643838566491,0.01203053,2625.0,2622.8,0.01240434]
[1643838566689,0.01203053,2625.0,2622.7,0.01906422]
[1643838566690,0.01260319,2624.0,2622.7,0.01906422]
[1643838566892,0.01577642,2625.0,2622.6,0.91906422]
[1643838566893,0.08093577,2624.7,2622.6,0.91906422]
[1643838567087,0.19501264,2624.3,2623.4,0.16731284]
[1643838567288,2.48456462,2624.8,2622.4,1.90566]
[1643838567289,0.08093577,2623.5,2622.4,0.84141736]
[1643838567487,0.08093577,2623.5,2622.1,0.01291055]
[1643838567687,0.08093577,2623.5,2622.1,0.01387055]
[1643838567887,0.1905,2623.4,2622.1,0.01387055]
[1643838568087,0.08093577,2623.2,2622.1,0.01387055]
[1643838568295,0.08093577,2623.7,2622.1,0.01291055]
[1643838568489,0.85519273,2623.2,2622.3,0.87293336]
[1643838568693,0.08093577,2622.8,2622.1,0.01291055]
[1643838568893,0.08093577,2623.0,2621.9,0.00096]
[1643838569089,0.08093577,2622.9,2621.9,0.00096]
[1643838569290,0.20307684,2622.4,2621.9,0.00096]
[1643838569495,1.0,2623.2,2621.5,0.012066]
[1643838569748,0.1905,2623.5,2621.3,0.00096]
[1643838569749,0.08093577,2622.4,2621.3,0.00096]
[1643838569949,0.08093577,2622.6,2621.3,0.00096]
[1643838570345,0.1905,2622.5,2621.7,0.90355622]
[1643838570547,29.2572717,2623.2,2621.7,0.91557312]
[1643838570548,0.21775391,2622.7,2621.7,0.91557312]
[1643838570945,0.1905,2622.6,2621.7,0.00466351]
[1643838571146,0.08093577,2621.8,2621.7,0.00466351]
[1643838571348,4.07064644,2622.6,2621.0,0.01227791]
[1643838571349,4.07224644,2622.6,2621.0,0.01227791]
[1643838571551,0.08093577,2622.4,2621.0,0.01227791]
[1643838571747,0.1905,2622.6,2621.0,0.01227791]
[1643838571950,0.1905,2622.6,2621.1,0.448]
[1643838572149,0.1907,2622.8,2621.1,0.453]
[1643838572348,0.08093577,2622.7,2621.1,0.453]
[1643838572546,0.08093577,2622.9,2621.9,0.18460894]
[1643838572745,0.1905,2622.8,2621.7,0.448]
[1643838572946,0.08093577,2622.5,2621.6,0.448]
[1643838573145,0.08093577,2622.9,2621.7,0.00096]
[1643838573346,0.1905,2623.2,2621.7,0.00096]
[1643838573801,0.1905,2623.2,2621.6,0.01204868]
[1643838573802,0.19429018,2623.1,2621.6,0.01204868]
[1643838574199,0.19429018,2623.1,2621.7,0.448]
[1643838574200,0.08093577,2622.5,2621.7,0.448]
[1643838574401,0.27143577,2623.0,2621.7,0.448]
[1643838574600,0.08093577,2622.4,2622.0,0.69318233]
[1643838574806,0.08093577,2622.7,2622.0,0.69318233]
[1643838575000,0.01260187,2623.7,2621.7,0.748]
[1643838575001,1.5,2622.2,2621.7,0.44896]
[1643838575202,1.5,2622.2,2622.1,0.00465123]
[1643838575400,1.58093577,2622.2,2622.1,0.00465123]
[1643838575602,7.23093577,2622.2,2622.1,5.123e-05]
[1643838575800,7.42143577,2622.2,2622.1,5.123e-05]
[1643838576200,0.20103161,2621.9,2621.2,0.81805631]
[1643838576405,0.20103161,2621.9,2621.0,0.005]
[1643838576406,0.08093577,2621.3,2621.0,0.005]
[1643838576608,0.08093577,2621.1,2620.7,0.00096]
[1643838576805,5.73093577,2620.8,2619.5,0.00096]
[1643838577007,0.08093577,2620.4,2619.5,0.00096]
[1643838577445,0.08093577,2620.2,2620.1,0.04206334]
[1643838577645,5.65,2620.8,2619.4,1.01801124]
[1643838577646,2.5,2620.6,2619.4,1.01801124]
[1643838578040,0.08093577,2620.5,2619.5,0.00096]
[1643838578241,2.5,2620.6,2619.5,0.00096]
[1643838578441,0.78600261,2620.4,2619.5,0.00096]
[1643838578644,0.08093577,2620.1,2619.1,0.01263984]
[1643838578849,0.08093577,2620.1,2618.3,2.5]
[1643838578850,0.08093577,2619.8,2618.3,2.5]
[1643838579042,1.58093577,2619.6,2618.4,0.00096]
[1643838579242,1.5,2619.6,2618.4,0.00096]
[1643838579444,0.17996145,2619.6,2618.4,0.46187166]
[1643838579641,0.72483866,2619.3,2618.4,0.398]
[1643838579843,0.1908,2620.0,2618.6,0.01289423]
[1643838580050,0.08093577,2620.2,2618.6,0.01289423]
[1643838580051,0.1908,2620.2,2618.9,0.00139362]
[1643838580343,0.08093577,2619.1,2618.9,0.00139362]
[1643838580542,0.08093577,2619.6,2618.9,0.00139362]
[1643838580742,0.19030944,2619.8,2619.0,0.68287686]
[1643838580999,0.08093577,2619.5,2618.1,0.4604352]
[1643838581199,0.08093577,2619.5,2618.2,0.00096]
[1643838581597,0.08093577,2619.3,2618.2,0.00096]
[1643838581998,0.26285011,2619.3,2618.4,0.19445511]
[1643838582202,0.08093577,2619.3,2618.8,0.69504685]
[1643838582400,0.85358733,2619.7,2618.8,0.69504685]
[1643838582603,3.0459737,2620.0,2618.8,0.69504685]
[1643838582800,0.08093577,2619.6,2618.8,0.69600685]
[1643838583004,0.08093577,2619.6,2618.1,0.0124352]
[1643838583005,5.65,2619.2,2618.1,0.0124352]
[1643838583202,0.01233269,2618.9,2618.5,0.00096]
[1643838583403,0.1908,2619.1,2618.5,0.00096]
[1643838583707,0.1908,2619.3,2618.5,0.00096]
[1643838583903,0.01207228,2619.8,2617.5,0.0124093]
[1643838583904,0.1908,2619.6,2618.0,0.448]
[1643838584107,0.09300805,2619.8,2616.0,7.98315293]
[1643838584108,0.4639,2617.7,2616.0,7.98315293]
[1643838584303,0.4639,2617.7,2617.0,0.0001]
[1643838584304,0.01218002,2617.1,2617.0,0.0001]
[1643838584503,0.01218002,2617.1,2616.8,0.00096]
[1643838584741,0.191,2617.0,2616.8,0.00096]
[1643838584943,0.191,2617.0,2616.0,6.9955]
[1643838584944,0.141,2617.0,2616.0,6.92194693]
[1643838585150,0.191,2617.5,2616.8,0.01241607]
[1643838585342,2.47371873,2618.1,2616.1,0.00096]
[1643838585544,0.191,2618.0,2616.1,0.00096]
[1643838585742,0.0120081,2617.4,2616.1,0.00096]
[1643838586242,0.191,2618.0,2616.1,0.00096]
[1643838586243,0.01286206,2617.6,2616.8,0.88081648]
[1643838586444,0.191,2617.5,2616.9,0.00096]
[1643838586649,0.191,2617.8,2616.9,0.00096]
[1643838586845,0.191,2618.2,2616.9,0.00096]
[1643838587047,0.191,2618.2,2616.0,0.191]
[1643838587048,0.3214,2616.9,2616.0,0.191]
[1643838587248,0.3214,2616.9,2615.6,0.01]
[1643838587446,0.191,2616.8,2615.6,0.01]
[1643838588046,0.201,2616.8,2615.6,0.01]
[1643838588244,0.191,2616.8,2615.6,0.01]
[1643838588485,0.13819997,2617.1,2615.6,0.01]
[1643838588486,0.13819997,2617.1,2615.7,0.19821459]
[1643838588688,0.00430123,2616.6,2615.7,0.00721459]
[1643838589089,0.19530123,2616.6,2615.7,0.00721459]
[1643838589290,0.01,2616.2,2615.7,0.00721459]
[1643838589488,0.00430123,2616.6,2615.7,0.00721459]
[1643838589691,0.20299151,2616.8,2615.7,0.19821459]
[1643838589890,0.20299151,2616.8,2616.0,0.00136806]
[1643838589891,0.01225151,2616.8,2616.0,0.00136806]
[1643838590090,0.21891872,2616.4,2616.0,0.00136806]
[1643838590296,1.33500284,2616.8,2616.0,0.00136806]
[1643838590297,3.70093962,2616.1,2616.0,6.806e-05]
[1643838590593,6.25093962,2616.1,2616.0,6.806e-05]
[1643838590788,6.25093962,2616.1,2615.7,0.00721459]
[1643838590789,5.841,2616.1,2615.7,0.00721459]
[1643838590991,3.00460362,2616.1,2615.7,0.00721459]
[1643838591190,3.0,2616.1,2615.7,0.00721459]
[1643838591390,1.32275133,2617.0,2615.7,0.00721459]
[1643838591391,0.191,2616.7,2615.7,0.00721459]
[1643838591591,4.66507092,2617.0,2615.7,0.00721459]
[1643838591592,0.191,2616.0,2615.7,0.00721459]
[1643838591792,4.55281654,2617.0,2615.7,0.00721459]
[1643838591793,0.95483177,2615.9,2615.7,0.00721459]
[1643838591994,0.01227872,2616.7,2615.7,0.00721459]
[1643838591995,0.191,2616.6,2615.7,0.00721459]
[1643838592243,0.19530926,2616.6,2615.7,0.00721459]
[1643838592441,0.1456,2616.5,2615.7,0.00721459]
[1643838592644,0.191,2616.4,2615.7,0.00721459]
[1643838592845,0.17433287,2616.1,2615.7,0.00721459]
[1643838593043,3.20490397,2616.4,2615.7,1.459e-05]
[1643838593244,0.01263104,2616.1,2615.7,1.459e-05]
[1643838593442,0.02010543,2616.1,2615.7,1.459e-05]
[1643838593750,0.02010543,2616.1,2615.2,0.0325869]
[1643838593751,0.191,2616.0,2615.2,0.0325869]
[1643838593945,0.1608,2616.2,2615.2,0.0325869]
[1643838593946,0.17959494,2615.9,2615.2,0.0325869]
[1643838594143,0.17069908,2615.9,2615.2,0.0325869]
[1643838594343,0.01293576,2616.3,2615.2,0.0325869]
[1643838594643,0.3374,2616.5,2615.4,0.00136222]
[1643838594850,0.3374,2616.5,2615.2,0.83193602]
[1643838594851,2.6,2616.4,2615.2,0.83193602]
[1643838595048,1.32275133,2616.6,2615.3,0.00096]
[1643838595246,1.32275133,2616.6,2615.3,0.19196]
[1643838595448,1.32275133,2616.6,2615.8,0.21988247]
[1643838595644,1.32275133,2616.6,2615.3,0.20696]
[1643838595645,1.32275133,2616.6,2615.5,0.448]
[1643838595844,0.01296137,2616.8,2616.2,0.68212707]
[1643838596098,0.13819997,2617.1,2616.2,0.448]
[1643838596296,0.01233786,2617.6,2616.2,0.448]
[1643838596696,0.01233786,2617.6,2616.3,0.191]
[1643838596896,0.1881101,2617.3,2616.4,0.448]
[1643838597095,0.68424085,2617.0,2616.4,0.44896]
[1643838597696,0.68424085,2617.0,2616.3,0.191]
[1643838598101,0.67992197,2617.0,2616.3,0.191]
[1643838598296,0.20307786,2617.6,2616.3,0.191]
[1643838598297,0.00431888,2616.8,2616.3,0.191]
[1643838598498,0.00431888,2616.8,2616.5,0.99999999]
[1643838598699,0.00431888,2616.8,2616.5,1.44799999]
[1643838598999,1.888e-05,2616.8,2616.7,6.64999999]
[1643838599299,0.012004,2618.4,2616.7,8.69799999]
[1643838599598,0.012004,2618.4,2616.8,0.19696]
[1643838599838,0.012004,2618.4,2616.9,0.448]
[1643838600043,0.206,2619.0,2617.7,0.73555009]
[1643838600242,0.206,2619.0,2617.8,0.1908]
[1643838600243,0.005,2619.0,2617.8,0.1908]
[1643838600440,0.005,2619.0,2617.9,0.448]
[1643838600646,0.005,2619.0,2618.0,0.1908]
[1643838600838,0.005,2619.0,2618.1,0.00269506]
[1643838601045,1.17066899,2618.5,2618.1,0.00269506]
[1643838601240,1.17066899,2618.5,2618.1,0.00365506]
[1643838601439,5.65,2618.9,2617.6,0.448]
[1643838601639,5.65,2618.9,2617.2,0.639]
[1643838601940,0.015,2619.0,2617.2,0.939]
[1643838602138,0.00431887,2618.4,2617.3,0.00096]
[1643838602338,0.00431887,2618.4,2617.8,1.06677156]
[1643838602538,0.01248609,2618.8,2617.9,0.005]
[1643838602739,0.005,2619.0,2617.4,0.1908]
[1643838602740,0.005,2619.0,2617.5,0.00096]
[1643838602941,0.005,2619.0,2617.8,0.99999999]
[1643838603140,0.005,2619.0,2617.9,0.44896]
[1643838603341,0.005,2619.0,2618.0,0.6388]
[1643838603594,0.005,2619.0,2618.3,0.75035379]
[1643838603993,0.005,2619.0,2618.3,0.75535379]
[1643838604196,0.005,2619.0,2618.3,0.005]
[1643838604394,0.005,2619.0,2618.2,0.00096]
[1643838604995,0.005,2619.0,2618.0,0.01]
[1643838605195,0.1780358,2618.3,2618.0,0.01]
[1643838605397,0.01237635,2618.7,2618.0,0.01]
[1643838606395,0.1908,2618.9,2618.0,0.01]
[1643838606897,0.1908,2618.9,2617.3,0.005]
[1643838606898,0.00567837,2618.5,2617.2,0.6388]
[1643838607097,0.00567837,2618.5,2617.0,0.00455612]